{"text_format":"3","workbook":"xlsx","n_sheets":7,"sheets":["Fornecedores","Clientes","Unidades","Locais de Estocagem","Itens de Estoque","Entradas","Saídas"],"not_rendered":{"defined_names":12},"read":"whole","date_system":"1900"}

{"sheet":"Fornecedores","index":0,"n_rows":5,"n_cols":2,"rows_kept":5}
["Cadastro de Fornecedores"]
[]
["Código do Fornecedor","Nome do Fornecedor"]
["0001","Exemplo do Brasil Ltda."]
["0002","Metalúgica Exemplo Ltda."]

{"sheet":"Clientes","index":1,"n_rows":5,"n_cols":2,"rows_kept":5}
["Cadastro de Clientes"]
[]
["Código do Cliente","Nome do Cliente"]
["0001","Exemplo Representações Ltda."]
["0002","Comercial Exemplo Ltda."]

{"sheet":"Unidades","index":2,"n_rows":9,"n_cols":2,"rows_kept":9}
["Cadastro de Unidades de Medidas de Controle"]
[]
["Unidade","Descrição"]
["PÇ","Peça"]
["PC","Pacote"]
["Kg","Quilograma"]
["m","Metro"]
["m²","Metro Quadrado"]
["m³","Metro Cúbico"]

{"sheet":"Locais de Estocagem","index":3,"n_rows":6,"n_cols":7,"rows_kept":6}
["Cadastro de Locais de Estocagem"]
[]
["Local","Corredor","Prateleira","Andar","Box","Unidade","Saldo do Local"]
[{"$f":"IF(AND(Locais[Corredor]<>\"\",Locais[Prateleira]<>\"\",Locais[Andar]<>\"\",Locais[Box]<>\"\")=TRUE,Locais[Corredor]&\".\"&Locais[Prateleira]&\".\"&Locais[Andar]&\".\"&Locais[Box],\"\")","v":"001.01.A.01"},"001","01","A","01","PÇ",{"$f":"SUMIF(Entradas[Local],Locais[[#This Row],[Local]],Entradas[Quantidade])-SUMIF(Saídas[Local],Locais[[#This Row],[Local]],Saídas[Quantidade])","v":{"v":187,"d":"187.00"}}]
[{"$f":"IF(AND(Locais[Corredor]<>\"\",Locais[Prateleira]<>\"\",Locais[Andar]<>\"\",Locais[Box]<>\"\")=TRUE,Locais[Corredor]&\".\"&Locais[Prateleira]&\".\"&Locais[Andar]&\".\"&Locais[Box],\"\")","v":"001.02.A.01"},"001","02","A","01","m",{"$f":"SUMIF(Entradas[Local],Locais[[#This Row],[Local]],Entradas[Quantidade])-SUMIF(Saídas[Local],Locais[[#This Row],[Local]],Saídas[Quantidade])","v":{"v":55,"d":"55.00"}}]
[{"$f":"IF(AND(Locais[Corredor]<>\"\",Locais[Prateleira]<>\"\",Locais[Andar]<>\"\",Locais[Box]<>\"\")=TRUE,Locais[Corredor]&\".\"&Locais[Prateleira]&\".\"&Locais[Andar]&\".\"&Locais[Box],\"\")","v":"001.01.A.02"},"001","01","A","02","PÇ",{"$f":"SUMIF(Entradas[Local],Locais[[#This Row],[Local]],Entradas[Quantidade])-SUMIF(Saídas[Local],Locais[[#This Row],[Local]],Saídas[Quantidade])","v":{"v":110,"d":"110.00"}}]

{"sheet":"Itens de Estoque","index":4,"n_rows":5,"n_cols":7,"rows_kept":5}
["Cadastro de Itens de Estoque"]
[]
["Código do Item","Descrição do Item","Unidade","Saldo","Preço Mínimo","Preço Máximo","Último Preço"]
["6874A","Item Exemplo 1","PÇ",{"$f":"SUMIF(Entradas[Código do Item],Itens[[#This Row],[Código do Item]],Entradas[Quantidade])-SUMIF(Saídas[Código do Item],Itens[[#This Row],[Código do Item]],Saídas[Quantidade])","v":{"v":297,"d":"297.00"}}]
["6947E","Item Exemplo 2","m",{"$f":"SUMIF(Entradas[Código do Item],Itens[[#This Row],[Código do Item]],Entradas[Quantidade])-SUMIF(Saídas[Código do Item],Itens[[#This Row],[Código do Item]],Saídas[Quantidade])","v":{"v":55,"d":"55.00"}}]

{"sheet":"Entradas","index":5,"n_rows":6,"n_cols":11,"rows_kept":6}
["Registro de Entradas"]
[]
["Data","Código do Fornecedor","Nome do Fornecedor","Código do Item","Descrição do Item","Unidade do Item","Local","Unidade do Local","Nota","Quantidade","Preço Unitário"]
["01/01/2010","0001",{"$f":"IF(Entradas[Código do Fornecedor]=\"\",\"\",VLOOKUP(Entradas[Código do Fornecedor],Fornecedores[],2,FALSE))","v":"Exemplo do Brasil Ltda."},"6874A",{"$f":"IF(Entradas[Código do Item]=\"\",\"\",VLOOKUP(Entradas[Código do Item],Itens[],2,FALSE))","v":"Item Exemplo 1"},{"$f":"IF(Entradas[Código do Item]=\"\",\"\",VLOOKUP(Entradas[Código do Item],Itens[],3,FALSE))","v":"PÇ"},"001.01.A.01",{"$f":"IF(Entradas[Local]=\"\",\"\",VLOOKUP(Entradas[Local],Locais[],6,FALSE))","v":"PÇ"},23900,{"v":200,"d":"200.00"},{"v":5.6,"d":"5.60"}]
["30/06/2010","0001",{"$f":"IF(Entradas[Código do Fornecedor]=\"\",\"\",VLOOKUP(Entradas[Código do Fornecedor],Fornecedores[],2,FALSE))","v":"Exemplo do Brasil Ltda."},"6947E",{"$f":"IF(Entradas[Código do Item]=\"\",\"\",VLOOKUP(Entradas[Código do Item],Itens[],2,FALSE))","v":"Item Exemplo 2"},{"$f":"IF(Entradas[Código do Item]=\"\",\"\",VLOOKUP(Entradas[Código do Item],Itens[],3,FALSE))","v":"m"},"001.02.A.01",{"$f":"IF(Entradas[Local]=\"\",\"\",VLOOKUP(Entradas[Local],Locais[],6,FALSE))","v":"m"},"23915",{"v":55,"d":"55.00"},{"v":3.9,"d":"3.90"}]
["01/04/2010","0001",{"$f":"IF(Entradas[Código do Fornecedor]=\"\",\"\",VLOOKUP(Entradas[Código do Fornecedor],Fornecedores[],2,FALSE))","v":"Exemplo do Brasil Ltda."},"6874A",{"$f":"IF(Entradas[Código do Item]=\"\",\"\",VLOOKUP(Entradas[Código do Item],Itens[],2,FALSE))","v":"Item Exemplo 1"},{"$f":"IF(Entradas[Código do Item]=\"\",\"\",VLOOKUP(Entradas[Código do Item],Itens[],3,FALSE))","v":"PÇ"},"001.01.A.02",{"$f":"IF(Entradas[Local]=\"\",\"\",VLOOKUP(Entradas[Local],Locais[],6,FALSE))","v":"PÇ"},"23967",{"v":130,"d":"130.00"},{"v":4.2,"d":"4.20"}]

{"sheet":"Saídas","index":6,"n_rows":5,"n_cols":11,"rows_kept":5}
["Registro de Saídas"]
[]
["Data","Código do Cliente","Nome do Cliente","Código do Item","Descrição do Item","Unidade do Item","Local","Unidade do Local","Nota","Quantidade","Preço Unitário"]
["01/06/2010","0001",{"$f":"IF(Saídas[Código do Cliente]=\"\",\"\",VLOOKUP(Saídas[Código do Cliente],Clientes[],2,FALSE))","v":"Exemplo Representações Ltda."},"6874A",{"$f":"IF(Saídas[Código do Item]=\"\",\"\",VLOOKUP(Saídas[Código do Item],Itens[],2,FALSE))","v":"Item Exemplo 1"},{"$f":"IF(Saídas[Código do Item]=\"\",\"\",VLOOKUP(Saídas[Código do Item],Itens[],3,FALSE))","v":"PÇ"},"001.01.A.01",{"$f":"IF(Saídas[Local]=\"\",\"\",VLOOKUP(Saídas[Local],Locais[],6,FALSE))","v":"PÇ"},null,{"v":13,"d":"13.00"},{"v":8,"d":"8.00"}]
["01/04/2010","0002",{"$f":"IF(Saídas[Código do Cliente]=\"\",\"\",VLOOKUP(Saídas[Código do Cliente],Clientes[],2,FALSE))","v":"Comercial Exemplo Ltda."},"6874A",{"$f":"IF(Saídas[Código do Item]=\"\",\"\",VLOOKUP(Saídas[Código do Item],Itens[],2,FALSE))","v":"Item Exemplo 1"},{"$f":"IF(Saídas[Código do Item]=\"\",\"\",VLOOKUP(Saídas[Código do Item],Itens[],3,FALSE))","v":"PÇ"},"001.01.A.02",{"$f":"IF(Saídas[Local]=\"\",\"\",VLOOKUP(Saídas[Local],Locais[],6,FALSE))","v":"PÇ"},null,{"v":20,"d":"20.00"},{"v":7.8,"d":"7.80"}]